[Event "*** Titled Tuesday Blitz"]
[Site "Chess.com"]
[Date "2019.04.02"]
[Round "8"]
[White "Alex_Terzi"]
[Black "Kirill_Klukin"]
[Result "1/2-1/2"]
[WhiteElo "2420"]
[BlackElo "2568"]
[TimeControl "180+2"]
[EndTime "15:50:51 PDT"]
[Termination "Game drawn by repetition"]

1. e4 {[%clk 0:02:42.1]} 1... c5 {[%clk 0:02:58.9]} 2. Nf3 {[%clk 0:02:42.8]}
2... Nc6 {[%clk 0:02:59.9]} 3. d4 {[%clk 0:02:44]} 3... cxd4 {[%clk 0:03:00.9]}
4. Nxd4 {[%clk 0:02:45.9]} 4... e5 {[%clk 0:03:02.5]} 5. Nb5 {[%clk 0:02:46.4]}
5... d6 {[%clk 0:03:03.8]} 6. N1c3 {[%clk 0:02:47.6]} 6... a6 {[%clk 0:03:03.8]}
7. Na3 {[%clk 0:02:48.8]} 7... Be7 {[%clk 0:03:05.7]} 8. Nd5 {[%clk 0:02:50.3]}
8... Nf6 {[%clk 0:03:06.4]} 9. Nxf6+ {[%clk 0:02:44.6]} 9... Bxf6 {[%clk
0:03:08.3]} 10. Be3 {[%clk 0:02:44.2]} 10... O-O {[%clk 0:03:09.2]} 11. g3
{[%clk 0:02:40.5]} 11... Be6 {[%clk 0:03:08.4]} 12. Bg2 {[%clk 0:02:40.8]} 12...
Bg5 {[%clk 0:03:09]} 13. Bxg5 {[%clk 0:02:38.5]} 13... Qxg5 {[%clk 0:03:09.7]}
14. O-O {[%clk 0:02:39.8]} 14... Rfd8 {[%clk 0:03:10.3]} 15. c3 {[%clk 0:02:33]}
15... Ne7 {[%clk 0:02:57.4]} 16. f4 {[%clk 0:02:27.5]} 16... exf4 {[%clk
0:02:57.1]} 17. gxf4 {[%clk 0:02:28.3]} 17... Qc5+ {[%clk 0:02:55.7]} 18. Qd4
{[%clk 0:02:25.6]} 18... f5 {[%clk 0:02:42.6]} 19. Qxc5 {[%clk 0:02:11.7]} 19...
dxc5 {[%clk 0:02:42.3]} 20. exf5 {[%clk 0:02:11.9]} 20... Nxf5 {[%clk
0:02:41.5]} 21. Bxb7 {[%clk 0:02:12.1]} 21... Rab8 {[%clk 0:02:42.1]} 22. Bxa6
{[%clk 0:02:09.4]} 22... Rxb2 {[%clk 0:02:42.8]} 23. Nc4 {[%clk 0:02:06.8]}
23... Rc2 {[%clk 0:01:48.8]} 24. Rfc1 {[%clk 0:02:05.4]} 24... Rxc1+ {[%clk
0:01:48.9]} 25. Rxc1 {[%clk 0:02:04.9]} 25... Ra8 {[%clk 0:01:49.7]} 26. Bb5
{[%clk 0:01:51.2]} 26... Rxa2 {[%clk 0:01:46.7]} 27. Re1 {[%clk 0:01:44.7]}
27... Bf7 {[%clk 0:01:04]} 28. Ne5 {[%clk 0:01:45.1]} 28... Ra3 {[%clk
0:00:51.8]} 29. Rd1 {[%clk 0:01:37.2]} 29... Ra8 {[%clk 0:00:30.9]} 30. Rd7
{[%clk 0:01:31.3]} 30... Be6 {[%clk 0:00:31.4]} 31. Rc7 {[%clk 0:01:32.1]} 31...
g6 {[%clk 0:00:24.2]} 32. Rxc5 {[%clk 0:01:30.3]} 32... Ra1+ {[%clk 0:00:24.5]}
33. Kf2 {[%clk 0:01:31]} 33... Ra2+ {[%clk 0:00:25.8]} 34. Kf3 {[%clk 0:01:30]}
34... Rxh2 {[%clk 0:00:26.6]} 35. Bd7 {[%clk 0:01:23.3]} 35... Bxd7 {[%clk
0:00:24.8]} 36. Nxd7 {[%clk 0:01:25.2]} 36... Rh3+ {[%clk 0:00:25]} 37. Ke4
{[%clk 0:01:24.6]} 37... Re3+ {[%clk 0:00:25.9]} 38. Kd5 {[%clk 0:01:24]} 38...
h5 {[%clk 0:00:26.4]} 39. Ne5 {[%clk 0:01:18.3]} 39... h4 {[%clk 0:00:24.3]} 40.
Ke6 {[%clk 0:00:46.2]} 40... h3 {[%clk 0:00:20]} 41. Kf6 {[%clk 0:00:47.2]}
41... h2 {[%clk 0:00:16.5]} 42. Rc8+ {[%clk 0:00:48.3]} 42... Kh7 {[%clk
0:00:17.2]} 43. Nf7 {[%clk 0:00:48.9]} 43... Re6+ {[%clk 0:00:06.5]} 44. Kxe6
{[%clk 0:00:49.2]} 44... Ng7+ {[%clk 0:00:07.4]} 45. Ke5 {[%clk 0:00:45.5]}
45... Nh5 {[%clk 0:00:08.6]} 46. Ng5+ {[%clk 0:00:37.7]} 46... Kh6 {[%clk
0:00:09.8]} 47. Rc7 {[%clk 0:00:33.3]} 47... Ng7 {[%clk 0:00:11]} 48. Rc8 {[%clk
0:00:27.2]} 48... Nh5 {[%clk 0:00:09.2]} 49. Rc7 {[%clk 0:00:17.3]} 49... Ng7
{[%clk 0:00:10]} 50. Rc8 {[%clk 0:00:17.9]} 50... Nh5 {[%clk 0:00:08.5]} 51. Rc7
{[%clk 0:00:15.4]} 51... Ng7 {[%clk 0:00:06.6]} 1/2-1/2

[Event "*** Titled Tuesday Blitz"]
[Site "Chess.com"]
[Date "2019.04.02"]
[Round "8"]
[White "adriangschnitzer"]
[Black "sergeikim"]
[Result "0-1"]
[WhiteElo "2403"]
[BlackElo "2568"]
[TimeControl "180+2"]
[EndTime "15:50:51 PDT"]
[Termination "sergeikim won by resignation"]

1. d4 {[%clk 0:02:52.2]} 1... Nf6 {[%clk 0:02:59.9]} 2. g3 {[%clk 0:02:52.9]}
2... g6 {[%clk 0:03:00.6]} 3. Bg2 {[%clk 0:02:53.8]} 3... Bg7 {[%clk 0:03:01.6]}
4. e4 {[%clk 0:02:54.6]} 4... d6 {[%clk 0:03:02]} 5. Nc3 {[%clk 0:02:55.3]} 5...
O-O {[%clk 0:03:01]} 6. Nge2 {[%clk 0:02:56.2]} 6... c6 {[%clk 0:02:59.6]} 7. a4
{[%clk 0:02:56.3]} 7... a5 {[%clk 0:02:57]} 8. h3 {[%clk 0:02:55.7]} 8... Na6
{[%clk 0:02:56.9]} 9. O-O {[%clk 0:02:56.4]} 9... Nb4 {[%clk 0:02:54.6]} 10. g4
{[%clk 0:02:52.8]} 10... e5 {[%clk 0:02:51.5]} 11. Be3 {[%clk 0:02:50.4]} 11...
Qc7 {[%clk 0:02:47.1]} 12. Ng3 {[%clk 0:02:49.3]} 12... b6 {[%clk 0:02:40.1]}
13. f4 {[%clk 0:02:42.8]} 13... Ba6 {[%clk 0:02:38.2]} 14. Rf2 {[%clk
0:02:42.8]} 14... Rad8 {[%clk 0:02:23.7]} 15. f5 {[%clk 0:02:32.8]} 15... exd4
{[%clk 0:02:11.7]} 16. Bxd4 {[%clk 0:02:32.5]} 16... c5 {[%clk 0:02:11.8]} 17.
Be3 {[%clk 0:02:27.5]} 17... d5 {[%clk 0:02:12.7]} 18. Bf4 {[%clk 0:02:24.9]}
18... Qb7 {[%clk 0:01:55.8]} 19. e5 {[%clk 0:02:23.9]} 19... Ne4 {[%clk
0:01:52.5]} 20. Ncxe4 {[%clk 0:02:02]} 20... dxe4 {[%clk 0:01:52.2]} 21. Qe1
{[%clk 0:02:03.1]} 21... Rfe8 {[%clk 0:01:28.9]} 22. f6 {[%clk 0:02:02.2]} 22...
Bf8 {[%clk 0:01:26]} 23. Nxe4 {[%clk 0:02:02.3]} 23... Qc8 {[%clk 0:01:17.6]}
24. Rd1 {[%clk 0:01:49.6]} 24... Bb7 {[%clk 0:01:13.2]} 25. Rfd2 {[%clk
0:01:43.2]} 25... Rd4 {[%clk 0:01:04.5]} 26. c3 {[%clk 0:01:33.9]} 26... Rxd2
{[%clk 0:00:59.5]} 27. Rxd2 {[%clk 0:01:35.8]} 27... Nd5 {[%clk 0:00:58.3]} 28.
Bh2 {[%clk 0:01:18.3]} 28... Bh6 {[%clk 0:00:53.6]} 29. g5 {[%clk 0:01:18.7]}
29... Bf8 {[%clk 0:00:52.2]} 30. Qe2 {[%clk 0:00:53.9]} 30... c4 {[%clk
0:00:49]} 31. Qg4 {[%clk 0:00:44.2]} 31... Bc5+ {[%clk 0:00:37]} 32. Nxc5 {[%clk
0:00:40.8]} 32... Qxc5+ {[%clk 0:00:35.4]} 33. Qd4 {[%clk 0:00:40.9]} 33...
Qxd4+ {[%clk 0:00:19.9]} 34. Rxd4 {[%clk 0:00:41.2]} 34... Rd8 {[%clk
0:00:20.8]} 35. Rxc4 {[%clk 0:00:39.8]} 35... Ne3 {[%clk 0:00:21.4]} 36. Bxb7
{[%clk 0:00:17.2]} 36... Nxc4 {[%clk 0:00:20.8]} 37. b3 {[%clk 0:00:14.5]} 37...
Rd1+ {[%clk 0:00:19.2]} 38. Kg2 {[%clk 0:00:15.5]} 38... Rd2+ {[%clk 0:00:19.6]}
39. Kg1 {[%clk 0:00:15.2]} 39... Ne3 {[%clk 0:00:19.8]} 40. Bf4 {[%clk
0:00:14.7]} 40... Rd1+ {[%clk 0:00:18.5]} 41. Kf2 {[%clk 0:00:14.9]} 41... Nf5
{[%clk 0:00:17.9]} 42. Bc8 {[%clk 0:00:12.5]} 42... Rb1 {[%clk 0:00:16.2]} 43.
e6 {[%clk 0:00:13.7]} 43... fxe6 {[%clk 0:00:16.5]} 44. Bxe6+ {[%clk 0:00:14.6]}
44... Kf8 {[%clk 0:00:17.6]} 45. b4 {[%clk 0:00:14.9]} 45... Rb2+ {[%clk
0:00:13.9]} 46. Kf3 {[%clk 0:00:14.6]} 46... Rc2 {[%clk 0:00:11.5]} 47. bxa5
{[%clk 0:00:13.5]} 47... Rxc3+ {[%clk 0:00:11.3]} 48. Ke4 {[%clk 0:00:14.7]}
48... bxa5 {[%clk 0:00:12.3]} 49. Bd2 {[%clk 0:00:13.1]} 49... Ra3 {[%clk
0:00:12]} 50. Bxa5 {[%clk 0:00:13]} 50... Rxa4+ {[%clk 0:00:12.6]} 51. Kd5
{[%clk 0:00:14.1]} 51... Rxa5+ {[%clk 0:00:14]} 52. Ke4 {[%clk 0:00:15]} 52...
Ra4+ {[%clk 0:00:14.9]} 0-1

[Event "*** Titled Tuesday Blitz"]
[Site "Chess.com"]
[Date "2019.04.02"]
[Round "8"]
[White "olksuna"]
[Black "RegZryt"]
[Result "0-1"]
[WhiteElo "2473"]
[BlackElo "2584"]
[TimeControl "180+2"]
[EndTime "15:51:04 PDT"]
[Termination "RegZryt won by checkmate"]

1. c4 {[%clk 0:03:01.9]} 1... e6 {[%clk 0:02:59.8]} 2. Nf3 {[%clk 0:03:00.3]}
2... d5 {[%clk 0:03:01.1]} 3. e3 {[%clk 0:03:00.9]} 3... Nf6 {[%clk 0:03:01.7]}
4. b3 {[%clk 0:03:01.4]} 4... Be7 {[%clk 0:03:02.7]} 5. Bb2 {[%clk 0:03:01.7]}
5... O-O {[%clk 0:03:03.9]} 6. Nc3 {[%clk 0:03:01.2]} 6... b6 {[%clk 0:03:05.1]}
7. cxd5 {[%clk 0:02:50.4]} 7... exd5 {[%clk 0:03:05.1]} 8. d4 {[%clk 0:02:49.5]}
8... a6 {[%clk 0:03:00.8]} 9. g3 {[%clk 0:02:49.5]} 9... Bb7 {[%clk 0:02:59]}
10. Bg2 {[%clk 0:02:50.5]} 10... Nbd7 {[%clk 0:03:00.2]} 11. O-O {[%clk
0:02:51.2]} 11... Re8 {[%clk 0:03:00.3]} 12. Rc1 {[%clk 0:02:49.1]} 12... Bd6
{[%clk 0:03:01.2]} 13. Qc2 {[%clk 0:02:42.3]} 13... Qe7 {[%clk 0:02:58.7]} 14.
Rfd1 {[%clk 0:02:42.1]} 14... Rac8 {[%clk 0:02:49.3]} 15. Qb1 {[%clk 0:02:39.2]}
15... g6 {[%clk 0:02:46.7]} 16. a4 {[%clk 0:02:31.9]} 16... Kg7 {[%clk
0:02:37.3]} 17. Ne2 {[%clk 0:02:14.5]} 17... Ne4 {[%clk 0:02:36.1]} 18. Qd3
{[%clk 0:02:06.4]} 18... f6 {[%clk 0:02:22.7]} 19. Nf4 {[%clk 0:02:05.9]} 19...
Nf8 {[%clk 0:02:06.3]} 20. Nd2 {[%clk 0:01:45.4]} 20... Ne6 {[%clk 0:02:01.2]}
21. Nxd5 {[%clk 0:01:41.8]} 21... Bxd5 {[%clk 0:01:34.3]} 22. Nxe4 {[%clk
0:01:42.3]} 22... Bxe4 {[%clk 0:01:32.9]} 23. Qxe4 {[%clk 0:01:38.1]} 23... Qf7
{[%clk 0:01:27.8]} 24. Qd3 {[%clk 0:01:23.9]} 24... a5 {[%clk 0:01:24.9]} 25.
Rc6 {[%clk 0:01:18.4]} 25... Rcd8 {[%clk 0:01:24]} 26. Rdc1 {[%clk 0:01:18.7]}
26... Re7 {[%clk 0:01:21.7]} 27. Qc4 {[%clk 0:01:15.7]} 27... Qe8 {[%clk
0:01:17.2]} 28. Bd5 {[%clk 0:01:06.8]} 28... Ng5 {[%clk 0:01:15.7]} 29. Bg2
{[%clk 0:00:54.8]} 29... h5 {[%clk 0:01:14.2]} 30. d5 {[%clk 0:00:54]} 30... Ne4
{[%clk 0:01:04.6]} 31. Bxe4 {[%clk 0:00:40.3]} 31... Rxe4 {[%clk 0:01:06.5]} 32.
Qc3 {[%clk 0:00:41.6]} 32... Be5 {[%clk 0:01:04.4]} 33. Rxc7+ {[%clk 0:00:41.4]}
33... Kh6 {[%clk 0:00:55.6]} 34. Qc2 {[%clk 0:00:37.2]} 34... Bxc7 {[%clk
0:00:50.4]} 35. Qxc7 {[%clk 0:00:39.1]} 35... Rxd5 {[%clk 0:00:45.9]} 36. Bxf6
{[%clk 0:00:39.2]} 36... Rd7 {[%clk 0:00:47.2]} 37. Qc3 {[%clk 0:00:29.5]} 37...
Kh7 {[%clk 0:00:45.6]} 38. h4 {[%clk 0:00:28.1]} 38... Re6 {[%clk 0:00:45.9]}
39. Bg5 {[%clk 0:00:27]} 39... Red6 {[%clk 0:00:46.8]} 40. Qc2 {[%clk
0:00:25.8]} 40... Qe6 {[%clk 0:00:44.4]} 41. Bf4 {[%clk 0:00:17.8]} 41... Rd2
{[%clk 0:00:42.6]} 42. Qc8 {[%clk 0:00:16.2]} 42... Rd1+ {[%clk 0:00:42.3]} 43.
Kh2 {[%clk 0:00:17.5]} 43... Rxc1 {[%clk 0:00:39]} 44. Qxc1 {[%clk 0:00:17.8]}
44... Qxb3 {[%clk 0:00:35.1]} 45. Qc6 {[%clk 0:00:18.6]} 45... Qd5 {[%clk
0:00:32.7]} 46. Qxb6 {[%clk 0:00:19.4]} 46... Rb7 {[%clk 0:00:33.7]} 47. Qf6
{[%clk 0:00:16.4]} 47... Qf7 {[%clk 0:00:28.3]} 48. Qc3 {[%clk 0:00:13.7]} 48...
Rb1 {[%clk 0:00:20.4]} 49. Qxa5 {[%clk 0:00:11.9]} 49... Qb7 {[%clk 0:00:21.5]}
50. e4 {[%clk 0:00:10.9]} 50... Qxe4 {[%clk 0:00:22]} 51. Qc7+ {[%clk
0:00:11.6]} 51... Kg8 {[%clk 0:00:23.4]} 52. Qc8+ {[%clk 0:00:12.2]} 52... Kf7
{[%clk 0:00:24.7]} 53. Qc7+ {[%clk 0:00:13.7]} 53... Ke6 {[%clk 0:00:25.4]} 54.
Qc8+ {[%clk 0:00:14.3]} 54... Kd5 {[%clk 0:00:24.9]} 55. Qa8+ {[%clk 0:00:14.5]}
55... Kd4 {[%clk 0:00:26.2]} 56. Qa7+ {[%clk 0:00:14.3]} 56... Kd3 {[%clk
0:00:27.4]} 57. Qd7+ {[%clk 0:00:15.3]} 57... Ke2 {[%clk 0:00:26.6]} 58. Qd2+
{[%clk 0:00:16.1]} 58... Kf1 {[%clk 0:00:27.8]} 59. Be3 {[%clk 0:00:13.7]} 59...
Qg2# {[%clk 0:00:28.7]} 0-1

[Event "*** Titled Tuesday Blitz"]
[Site "Chess.com"]
[Date "2019.04.02"]
[Round "8"]
[White "ChessQueen"]
[Black "hellokostya"]
[Result "1-0"]
[WhiteElo "2654"]
[BlackElo "2503"]
[TimeControl "180+2"]
[EndTime "15:51:05 PDT"]
[Termination "ChessQueen won by checkmate"]

1. e4 {[%clk 0:03:01.9]} 1... c5 {[%clk 0:02:58.6]} 2. c3 {[%clk 0:03:02.4]}
2... Nf6 {[%clk 0:02:58.8]} 3. e5 {[%clk 0:03:03]} 3... Nd5 {[%clk 0:03:00]} 4.
d4 {[%clk 0:03:03.1]} 4... cxd4 {[%clk 0:03:01.4]} 5. Nf3 {[%clk 0:02:58.9]}
5... e6 {[%clk 0:03:02.5]} 6. cxd4 {[%clk 0:02:59.2]} 6... d6 {[%clk 0:03:03.8]}
7. Bd3 {[%clk 0:02:56]} 7... dxe5 {[%clk 0:03:03.6]} 8. Nxe5 {[%clk 0:02:47.8]}
8... Nd7 {[%clk 0:03:00.9]} 9. O-O {[%clk 0:02:44.7]} 9... Nxe5 {[%clk
0:02:56.2]} 10. dxe5 {[%clk 0:02:44.3]} 10... Be7 {[%clk 0:02:55.4]} 11. Qg4
{[%clk 0:02:41.6]} 11... g6 {[%clk 0:02:47.3]} 12. Bh6 {[%clk 0:02:39.4]} 12...
Bf8 {[%clk 0:02:40.5]} 13. Bxf8 {[%clk 0:02:12.8]} 13... Kxf8 {[%clk 0:02:39.8]}
14. Nd2 {[%clk 0:02:12.4]} 14... Ne7 {[%clk 0:02:21.9]} 15. Qe2 {[%clk
0:02:04.5]} 15... Kg7 {[%clk 0:02:20.9]} 16. Ne4 {[%clk 0:02:03.2]} 16... Bd7
{[%clk 0:02:15.4]} 17. Nd6 {[%clk 0:01:48.8]} 17... Bc6 {[%clk 0:02:14.2]} 18.
Rfd1 {[%clk 0:01:49]} 18... Nd5 {[%clk 0:02:09.8]} 19. Qf3 {[%clk 0:01:44.8]}
19... Rf8 {[%clk 0:02:07.8]} 20. Qg3 {[%clk 0:01:38.8]} 20... Qb6 {[%clk
0:01:57.6]} 21. Rab1 {[%clk 0:01:32.5]} 21... Qb4 {[%clk 0:01:57.9]} 22. Be4
{[%clk 0:01:28]} 22... Rad8 {[%clk 0:01:52]} 23. a3 {[%clk 0:01:27]} 23... Qa4
{[%clk 0:01:44.1]} 24. b4 {[%clk 0:01:26.2]} 24... a6 {[%clk 0:01:24.3]} 25. Rd2
{[%clk 0:01:18]} 25... Ne7 {[%clk 0:01:03.9]} 26. Bc2 {[%clk 0:01:11.6]} 26...
Qb5 {[%clk 0:00:51.7]} 27. Nxb5 {[%clk 0:01:12.2]} 27... Rxd2 {[%clk 0:00:52.7]}
28. Qc3 {[%clk 0:01:11.8]} 28... Rxc2 {[%clk 0:00:35.2]} 29. Qxc2 {[%clk
0:01:11]} 29... axb5 {[%clk 0:00:36.5]} 30. Rd1 {[%clk 0:01:07]} 30... Nd5
{[%clk 0:00:35.7]} 31. Qd2 {[%clk 0:01:06.3]} 31... Ra8 {[%clk 0:00:34.9]} 32.
Ra1 {[%clk 0:01:01.9]} 32... Ra6 {[%clk 0:00:34.2]} 33. h4 {[%clk 0:01:02.4]}
33... h5 {[%clk 0:00:33.5]} 34. Kh2 {[%clk 0:01:01.7]} 34... Ra8 {[%clk
0:00:34]} 35. f3 {[%clk 0:01:00.9]} 35... Ra4 {[%clk 0:00:35]} 36. Qb2 {[%clk
0:00:57.4]} 36... Ra8 {[%clk 0:00:34.5]} 37. Rd1 {[%clk 0:00:56.9]} 37... Rc8
{[%clk 0:00:32.6]} 38. Rc1 {[%clk 0:00:48.2]} 38... Ra8 {[%clk 0:00:32.5]} 39.
Qb3 {[%clk 0:00:42.4]} 39... Ra6 {[%clk 0:00:31.3]} 40. Qd3 {[%clk 0:00:42.7]}
40... Ra8 {[%clk 0:00:30.3]} 41. Rc5 {[%clk 0:00:34.6]} 41... Rc8 {[%clk
0:00:24.2]} 42. Kg3 {[%clk 0:00:35]} 42... Ra8 {[%clk 0:00:22.9]} 43. Qb3 {[%clk
0:00:35.8]} 43... Rd8 {[%clk 0:00:21.7]} 44. Qb2 {[%clk 0:00:36.2]} 44... Ra8
{[%clk 0:00:22.3]} 45. Rc2 {[%clk 0:00:32]} 45... Ra6 {[%clk 0:00:22.5]} 46. Re2
{[%clk 0:00:32.2]} 46... Ra8 {[%clk 0:00:23.4]} 47. Kf2 {[%clk 0:00:32.4]} 47...
Ra6 {[%clk 0:00:24.5]} 48. Rd2 {[%clk 0:00:33.5]} 48... Ra8 {[%clk 0:00:25.4]}
49. g3 {[%clk 0:00:34.9]} 49... Ra6 {[%clk 0:00:26.2]} 50. Rd3 {[%clk
0:00:36.4]} 50... Ra8 {[%clk 0:00:27.1]} 51. Qd4 {[%clk 0:00:37.4]} 51... Ra6
{[%clk 0:00:27.1]} 52. Qc5 {[%clk 0:00:38.6]} 52... Ra8 {[%clk 0:00:27.3]} 53.
Qc1 {[%clk 0:00:37.9]} 53... Ra6 {[%clk 0:00:27]} 54. g4 {[%clk 0:00:39.3]}
54... hxg4 {[%clk 0:00:25.8]} 55. fxg4 {[%clk 0:00:40.5]} 55... Ra8 {[%clk
0:00:26.2]} 56. Kg3 {[%clk 0:00:41.8]} 56... Rh8 {[%clk 0:00:27.1]} 57. Qf1
{[%clk 0:00:42.5]} 57... Rh7 {[%clk 0:00:23.3]} 58. Rxd5 {[%clk 0:00:35.7]}
58... Bxd5 {[%clk 0:00:23.2]} 59. Qf6+ {[%clk 0:00:37.2]} 59... Kg8 {[%clk
0:00:19.9]} 60. Kf4 {[%clk 0:00:38.3]} 60... Bc6 {[%clk 0:00:18.9]} 61. Kg5
{[%clk 0:00:38.8]} 61... Rh8 {[%clk 0:00:19.1]} 62. h5 {[%clk 0:00:39.1]} 62...
gxh5 {[%clk 0:00:19.5]} 63. gxh5 {[%clk 0:00:40.3]} 63... Rh7 {[%clk 0:00:13.8]}
64. h6 {[%clk 0:00:41.4]} 64... Rh8 {[%clk 0:00:14.6]} 65. Qg7# {[%clk
0:00:42.1]} 1-0

[Event "*** Titled Tuesday Blitz"]
[Site "Chess.com"]
[Date "2019.04.02"]
[Round "8"]
[White "platy3"]
[Black "SavelijTartakover"]
[Result "1/2-1/2"]
[WhiteElo "2774"]
[BlackElo "2617"]
[TimeControl "180+2"]
[EndTime "15:51:08 PDT"]
[Termination "Game drawn by agreement"]

1. c4 {[%clk 0:03:01.7]} 1... c6 {[%clk 0:02:59.2]} 2. d4 {[%clk 0:02:59.9]}
2... d5 {[%clk 0:02:59.4]} 3. Nf3 {[%clk 0:02:58.1]} 3... Nf6 {[%clk 0:02:57.2]}
4. Qb3 {[%clk 0:02:58.6]} 4... dxc4 {[%clk 0:02:57.1]} 5. Qxc4 {[%clk
0:02:59.6]} 5... Bg4 {[%clk 0:02:58.4]} 6. Nbd2 {[%clk 0:02:59.6]} 6... Nbd7
{[%clk 0:02:57.7]} 7. g3 {[%clk 0:03:00.7]} 7... e6 {[%clk 0:02:58.2]} 8. Bg2
{[%clk 0:03:01.6]} 8... Be7 {[%clk 0:02:59.5]} 9. O-O {[%clk 0:03:03]} 9... a5
{[%clk 0:02:58.4]} 10. b3 {[%clk 0:03:04.2]} 10... a4 {[%clk 0:02:58.2]} 11. Bb2
{[%clk 0:02:59.3]} 11... O-O {[%clk 0:02:56.8]} 12. e4 {[%clk 0:02:57.7]} 12...
Bxf3 {[%clk 0:02:46.2]} 13. Bxf3 {[%clk 0:02:50.9]} 13... Qa5 {[%clk 0:02:36.1]}
14. Bc3 {[%clk 0:02:43.9]} 14... Qa6 {[%clk 0:02:35.7]} 15. Qxa6 {[%clk
0:02:42.7]} 15... Rxa6 {[%clk 0:02:35.1]} 16. b4 {[%clk 0:02:41.7]} 16... a3
{[%clk 0:02:21.7]} 17. Rab1 {[%clk 0:02:39.7]} 17... Nb6 {[%clk 0:02:13.5]} 18.
Rb3 {[%clk 0:02:30.9]} 18... Na4 {[%clk 0:02:06.5]} 19. Ba1 {[%clk 0:02:31.1]}
19... Nb2 {[%clk 0:02:00.5]} 20. b5 {[%clk 0:02:09.6]} 20... Ra4 {[%clk
0:01:59.2]} 21. bxc6 {[%clk 0:02:04.7]} 21... bxc6 {[%clk 0:01:59.6]} 22. Bxb2
{[%clk 0:01:42]} 22... axb2 {[%clk 0:01:58.7]} 23. Rxb2 {[%clk 0:01:43.9]} 23...
Rxd4 {[%clk 0:01:55.5]} 24. Rc2 {[%clk 0:01:45]} 24... Ra4 {[%clk 0:01:46.3]}
25. Rb1 {[%clk 0:01:26.5]} 25... Rfa8 {[%clk 0:01:41.1]} 26. Rbb2 {[%clk
0:01:17.6]} 26... Ba3 {[%clk 0:01:22]} 27. Rb7 {[%clk 0:01:14.4]} 27... Bf8
{[%clk 0:01:18.6]} 28. Nc4 {[%clk 0:01:10.8]} 28... Rxa2 {[%clk 0:01:10.5]} 29.
Rxa2 {[%clk 0:01:11.5]} 29... Rxa2 {[%clk 0:01:11.5]} 30. Ne5 {[%clk 0:01:12.6]}
30... c5 {[%clk 0:00:50.7]} 31. Rc7 {[%clk 0:00:55.2]} 31... Ne8 {[%clk
0:00:34.9]} 32. Rxf7 {[%clk 0:00:45.3]} 32... Bd6 {[%clk 0:00:27.4]} 33. Bg4
{[%clk 0:00:46.5]} 33... Nc7 {[%clk 0:00:17.2]} 34. Rxc7 {[%clk 0:00:38.8]}
34... Ra1+ {[%clk 0:00:15.9]} 35. Kg2 {[%clk 0:00:40.3]} 35... Bxc7 {[%clk
0:00:16.9]} 36. Bxe6+ {[%clk 0:00:41.6]} 36... Kf8 {[%clk 0:00:18]} 37. Nc4
{[%clk 0:00:43.3]} 37... Ra2 {[%clk 0:00:16.4]} 38. Kf3 {[%clk 0:00:35.4]} 38...
g5 {[%clk 0:00:16.8]} 39. Ke3 {[%clk 0:00:32.2]} 39... Ke7 {[%clk 0:00:17.1]}
40. Bg8 {[%clk 0:00:33.5]} 40... Rc2 {[%clk 0:00:14.8]} 41. Bd5 {[%clk
0:00:30.8]} 41... h5 {[%clk 0:00:14.7]} 42. h3 {[%clk 0:00:29.8]} 42... g4
{[%clk 0:00:15.3]} 43. hxg4 {[%clk 0:00:30.6]} 43... hxg4 {[%clk 0:00:16.6]} 44.
Bg8 {[%clk 0:00:30.4]} 44... Kf6 {[%clk 0:00:16.2]} 45. Bd5 {[%clk 0:00:29.4]}
45... Be5 {[%clk 0:00:16.5]} 46. Nd2 {[%clk 0:00:09.9]} 46... Bc3 {[%clk
0:00:11.3]} 47. Nb3 {[%clk 0:00:05]} 47... Be1 {[%clk 0:00:09.4]} 48. Kd3 {[%clk
0:00:06.2]} 48... Rxf2 {[%clk 0:00:08.7]} 49. Nxc5 {[%clk 0:00:07]} 49... Rf3+
{[%clk 0:00:09.9]} 50. Ke2 {[%clk 0:00:08.1]} 50... Bxg3 {[%clk 0:00:06.8]} 51.
e5+ {[%clk 0:00:08.8]} 51... Kxe5 {[%clk 0:00:07.8]} 52. Bxf3 {[%clk 0:00:09.1]}
52... gxf3+ {[%clk 0:00:08.8]} 1/2-1/2